bitfinex-derivatives/quotes_SOLF0:USTF0_20250309
["timestamp","ask_amount","ask_price","bid_price","bid_amount"]
[1741492042602,25.86,137.82,137.79,7.2583]
[1741492043197,25.90750873,137.82,137.79,7.31062656]
[1741492043405,25.90750873,137.82,137.79,0.05232656]
[1741492043603,25.90750873,137.82,137.8,7.2581]
[1741492044404,25.90750873,137.82,137.79,0.05232656]
[1741492044605,25.90750873,137.82,137.8,7.2582]
[1741492045001,25.90750873,137.82,137.79,0.05232656]
[1741492045203,0.04750873,137.82,137.81,7.2576]
[1741492046605,0.04750873,137.82,137.81,19.16948333]
[1741492047005,8.73e-06,137.82,137.81,19.16948333]
[1741492051713,37.75188333,137.9,137.81,11.91188333]
[1741492052010,37.75188333,137.9,137.85,11.91188333]
[1741492052210,37.75188333,137.9,137.87,7.2541]
[1741492052611,25.84,137.9,137.85,11.91188333]
[1741492052803,0.04753973,137.9,137.89,7.2534]
[1741492058016,0.04753973,137.9,137.87,19.2209729]
[1741492058410,0.04753973,137.9,137.87,11.9666729]
[1741492058713,0.04753973,137.9,137.88,7.2536]
[1741492061316,0.04753973,137.9,137.89,7.2534]
[1741492062314,0.04753973,137.9,137.87,11.9666729]
[1741492062612,0.04753973,137.9,137.88,7.2536]
[1741492064719,0.04753973,137.9,137.87,19.2208729]
[1741492065018,0.04753973,137.9,137.87,11.9666729]
[1741492065216,0.04753973,137.9,137.88,7.2539]
[1741492065615,0.04753973,137.9,137.87,11.9666729]
[1741492066420,0.04753973,137.9,137.89,7.2534]
[1741492067921,0.04753973,137.9,137.89,19.16528333]
[1741492070421,0.04753973,137.9,137.89,7.2534]
[1741492073925,0.04753973,137.9,137.87,11.9666729]
[1741492074230,11.91188333,137.89,137.87,0.05478957]
[1741492074418,19.16568333,137.89,137.87,0.05478957]
[1741492074813,11.91188333,137.89,137.87,0.05478957]
[1741492075019,7.2539,137.88,137.87,0.05478957]
[1741492078723,33.0739,137.88,137.87,0.05478957]
[1741492078929,7.2551,137.86,137.83,7.2564]
[1741492079129,25.82,137.88,137.83,7.2564]
[1741492079528,7.2548,137.87,137.83,7.2564]
[1741492079729,25.82,137.88,137.83,7.2564]
[1741492080127,0.05240364,137.87,137.84,0.05494188]
[1741492080326,0.05240364,137.87,137.84,11.96682521]
[1741492081526,0.05240364,137.87,137.84,0.05494188]
[1741492081728,11.96428697,137.87,137.84,0.05494188]
[1741492082127,19.21898697,137.87,137.84,0.05494188]
[1741492084031,0.05240364,137.87,137.84,11.96682521]
[1741492084730,0.05240364,137.87,137.86,7.255]
[1741492085531,0.05240364,137.87,137.85,7.2554]
[1741492086335,0.05240364,137.87,137.84,11.96682521]
[1741492086535,0.05240364,137.87,137.86,7.255]
[1741492088235,27.7982,137.92,137.89,7.2533]
[1741492088432,25.84,137.92,137.89,7.2533]
[1741492088631,7.2525,137.91,137.86,11.91188333]
[1741492088836,7.2525,137.91,137.87,7.2541]
[1741492089031,25.84,137.92,137.87,7.2541]
[1741492089429,0.05113094,137.91,137.88,0.04749317]
[1741492090038,7.30373094,137.91,137.88,0.04749317]
[1741492092434,0.05113094,137.91,137.88,0.04749317]
[1741492092635,0.05113094,137.91,137.89,7.2534]
[1741492092839,0.05113094,137.91,137.88,0.04749317]
[1741492092840,0.05113094,137.91,137.88,11.9593765]
[1741492093344,0.05113094,137.91,137.9,7.2529]
[1741492094638,0.05113094,137.91,137.89,7.2532]
[1741492096336,0.05113094,137.91,137.9,7.2529]
[1741492098042,0.05113094,137.91,137.9,19.16478333]
[1741492105147,3.094e-05,137.91,137.9,19.16478333]
[1741492107648,99.237064,137.99,137.96,7.2496]
[1741492107849,11.91188333,137.99,137.96,7.2496]
[1741492108147,11.91188333,137.99,137.95,7.2499]
[1741492108348,11.91188333,137.99,137.93,11.91188333]
[1741492108739,0.05451991,137.97,137.95,0.05144724]
[1741492108937,7.30381991,137.97,137.95,0.05144724]
[1741492109344,0.05451991,137.97,137.95,0.05144724]
[1741492110352,7.30401991,137.97,137.95,0.05144724]
[1741492110650,0.05451991,137.97,137.95,0.05144724]
[1741492110946,0.05451991,137.97,137.95,7.30174724]
[1741492111150,0.05451991,137.97,137.95,0.05144724]
[1741492112240,7.30391991,137.97,137.95,0.05144724]
[1741492112646,0.05451991,137.97,137.95,0.05144724]
[1741492114141,0.05451991,137.97,137.95,7.30134724]
[1741492114546,0.05451991,137.97,137.95,11.96333057]
[1741492114756,1.991e-05,137.97,137.96,7.2497]
[1741492130366,1.991e-05,137.97,137.95,19.21333057]
[1741492131071,1.991e-05,137.97,137.96,7.2497]
[1741492158791,1.991e-05,137.97,137.95,11.96333057]
[1741492158792,25.8,138.06,138.02,7.2463]
[1741492158985,25.8,138.06,138.0,11.91188333]
[1741492159392,9.1675,138.05,138.02,7.2466]
[1741492159593,1.9222,138.05,138.02,7.2466]
[1741492159793,1.97582939,138.05,138.02,7.29379473]
[1741492163094,0.05362939,138.05,138.02,0.04719473]
[1741492163296,0.05362939,138.05,138.02,11.95907806]
[1741492163692,0.05362939,138.05,138.03,7.2461]
[1741492163895,0.05362939,138.05,138.02,11.95907806]
[1741492165294,7.29892939,138.05,138.02,11.95907806]
[1741492166799,0.05362939,138.05,138.02,19.20567806]
[1741492166999,0.05362939,138.05,138.02,11.95907806]
[1741492167298,7.2461,138.03,138.02,0.04719473]
[1741492167598,0.05362939,138.05,138.02,0.04719473]
[1741492167897,7.2457,138.04,138.02,0.04719473]
[1741492169096,0.05362939,138.05,138.02,0.04719473]
[1741492169698,7.2459,138.04,138.02,0.04719473]
[1741492171294,37.76551272,138.05,138.02,0.04719473]
[1741492171501,11.91188333,138.03,137.96,11.91188333]
[1741492171702,25.8,138.02,137.96,11.91188333]
[1741492172090,7.2486,137.99,137.96,11.91188333]
[1741492172503,7.29840891,137.99,137.96,11.95924637]
[1741492174308,0.04980891,137.99,137.96,11.95924637]
[1741492175509,0.04980891,137.99,137.96,19.20864637]
[1741492177510,0.04980891,137.99,137.97,7.2491]
[1741492177900,0.04980891,137.99,137.96,11.95924637]
[1741492178103,0.04980891,137.99,137.96,19.20874637]
[1741492178510,0.04980891,137.99,137.96,11.95924637]
[1741492178709,0.04980891,137.99,137.97,7.2489]
[1741492180907,0.04980891,137.99,137.96,11.95924637]
[1741492181112,0.04980891,137.99,137.98,7.2487]
[1741492182708,0.04980891,137.99,137.98,19.16058333]
[1741492196920,8.91e-06,137.99,137.98,19.16058333]
[1741492201131,50.90038333,138.08,138.05,7.2449]
[1741492201428,50.90038333,138.08,138.02,11.91188333]
[1741492201625,50.90038333,138.08,138.04,7.2453]
[1741492202023,0.05101521,138.07,138.05,0.05146655]
[1741492202330,7.29521521,138.07,138.05,0.05146655]
[1741492204431,0.05101521,138.07,138.05,0.05146655]
[1741492205531,0.05101521,138.07,138.05,7.29616655]
[1741492205932,0.05101521,138.07,138.05,0.05146655]
[1741492207234,7.2445,138.06,138.05,0.05146655]
[1741492210239,7.29511521,138.07,138.05,0.05146655]
[1741492210539,0.05101521,138.07,138.03,7.246]
[1741492210739,7.2448,138.06,138.03,7.246]
[1741492210936,0.05101521,138.07,138.04,7.2455]
[1741492211741,0.05101521,138.07,138.04,7.29918741]
[1741492212438,7.29501521,138.07,138.04,7.29918741]
[1741492215646,7.2446,138.06,138.04,0.05368741]
[1741492217245,7.2461,138.03,137.97,6.0243]
[1741492217446,7.2461,138.03,137.98,11.91188333]
[1741492218149,7.2461,138.03,137.98,19.16018333]
[1741492218444,0.04928624,138.02,137.99,0.05291399]
[1741492219641,7.29588624,138.02,137.99,0.05291399]
[1741492220143,7.2476,138.0,137.99,0.05291399]
[1741492223147,11.91188333,138.0,137.93,52.07011195]
[1741492223354,11.91188333,137.98,137.93,40.15822862]
[1741492223556,11.91188333,137.96,137.93,40.15822862]
[1741492223758,7.2508,137.94,137.93,40.15822862]
[1741492224956,7.2513,137.93,137.92,138.62250482]
[1741492225262,33.0313,137.93,137.92,138.62250482]
[1741492225755,33.0313,137.93,137.92,0.04864866]
[1741492226559,25.78,137.93,137.92,0.04864866]
[1741492229158,25.78,137.93,137.86,11.91188333]
[1741492229356,11.91188333,137.92,137.86,11.91188333]
[1741492229959,7.2527,137.91,137.86,19.16678333]
[1741492230358,25.83014636,137.9,137.87,0.0499537]
[1741492230563,37.74202969,137.9,137.87,0.0499537]
[1741492231258,44.99502969,137.9,137.87,0.0499537]
[1741492231459,37.74202969,137.9,137.87,0.0499537]
[1741492231956,7.2538,137.89,137.87,0.0499537]
[1741492232768,37.74202969,137.9,137.87,0.0499537]
[1741492232967,7.2539,137.88,137.87,0.0499537]
[1741492236570,11.91188333,137.88,137.82,11.91188333]
[1741492237072,11.91188333,137.88,137.83,7.2566]
[1741492237469,11.91188333,137.88,137.82,11.91188333]
[1741492237673,0.04673383,137.87,137.84,0.0469107]
[1741492238865,11.91188333,137.86,137.84,0.0469107]
[1741492239069,11.91188333,137.86,137.79,5.9031]
[1741492239269,11.91188333,137.84,137.79,5.9031]
[1741492239573,7.2571,137.83,137.79,13.1614]
[1741492240274,0.04750121,137.82,137.8,11.95919221]
[1741492240474,11.91188333,137.86,137.8,11.95919221]
[1741492240773,0.05028122,137.82,137.8,11.95919221]
[1741492241273,0.05028122,137.82,137.81,7.2571]
[1741492241473,25.8,137.87,137.8,37.75919221]
[1741492241671,25.8,137.87,137.82,11.91188333]
[1741492242071,25.8,137.87,137.83,7.2562]
[1741492242774,0.05434263,137.86,137.84,0.05503439]
[1741492243374,0.05434263,137.86,137.84,11.96691772]
[1741492243974,0.05434263,137.86,137.85,7.2555]
[1741492252477,0.05434263,137.86,137.84,19.22281772]
[1741492253469,0.05434263,137.86,137.84,11.96691772]
[1741492253675,0.05434263,137.86,137.85,7.2555]
[1741492256877,0.05434263,137.86,137.84,19.22271772]
[1741492257376,0.05434263,137.86,137.84,11.96691772]
[1741492258681,0.05434263,137.86,137.84,0.05503439]
[1741492259980,0.05434263,137.86,137.85,7.2555]
[1741492260574,0.05434263,137.86,137.84,19.22271772]
[1741492262582,0.05434263,137.86,137.85,7.2555]
[1741492263582,11.91188333,137.92,137.88,7.2535]
[1741492263776,11.91188333,137.92,137.83,25.8]
[1741492263777,11.91188333,137.92,137.87,11.91188333]
[1741492263981,37.71188333,137.92,137.87,11.91188333]
[1741492264783,0.04701561,137.91,137.88,0.05521188]
[1741492266475,0.04701561,137.91,137.88,7.30881188]
[1741492269389,0.04701561,137.91,137.89,11.91188333]
[1741492269982,0.04701561,137.91,137.9,7.2529]
[1741492271794,25.8,137.95,137.92,7.2517]
[1741492272089,25.8,137.95,137.91,11.91188333]
[1741492272292,25.8,137.95,137.91,19.16408333]
[1741492272889,0.04629791,137.94,137.92,0.05004602]
[1741492273881,0.04629791,137.94,137.92,7.30164602]
[1741492274286,0.04629791,137.94,137.92,0.05004602]
[1741492274991,0.04629791,137.94,137.93,11.91188333]
[1741492276079,11.91188333,138.0,137.93,11.91188333]
[1741492276283,11.91188333,138.0,137.95,11.91188333]
[1741492276682,7.2481,138.0,137.95,11.91188333]
[1741492276880,25.8,138.01,137.95,11.91188333]
[1741492277088,11.91188333,138.02,137.95,11.91188333]
[1741492277284,0.04909987,137.99,137.97,11.96185371]
[1741492277994,0.04909987,137.99,137.97,19.21095371]
[1741492278691,0.04909987,137.99,137.97,11.96185371]
[1741492279495,7.29759987,137.99,137.97,11.96185371]
[1741492281388,7.2487,137.98,137.97,0.04997038]
[1741492281692,19.16058333,137.98,137.97,0.04997038]
[1741492282790,19.16058333,137.98,137.97,7.038e-05]
[1741492290696,0.04909987,137.99,137.97,7.038e-05]
[1741492291800,0.04909987,137.99,137.97,11.91195371]
[1741492292402,0.04909987,137.99,137.97,7.038e-05]
[1741492293001,7.2487,137.98,137.97,7.038e-05]
[1741492293399,0.04909987,137.99,137.97,7.038e-05]
[1741492297409,7.29729987,137.99,137.97,7.038e-05]
[1741492297602,0.04909987,137.99,137.97,7.038e-05]
[1741492298402,7.2487,137.98,137.97,7.038e-05]
[1741492298604,0.04909987,137.99,137.97,7.038e-05]
[1741492299302,7.29759987,137.99,137.97,7.038e-05]
[1741492300612,19.16058333,137.98,137.97,7.038e-05]
[1741492305908,7.2487,137.98,137.97,7.038e-05]
[1741492314328,25.82909987,137.99,137.97,7.038e-05]
[1741492315519,33.07739987,137.99,137.97,7.038e-05]
[1741492315917,25.82909987,137.99,137.97,7.038e-05]
[1741492316122,7.2487,137.98,137.97,7.038e-05]
[1741492320917,19.16058333,137.98,137.97,7.038e-05]
[1741492322133,25.82909987,137.99,137.97,7.038e-05]
[1741492322925,7.2487,137.98,137.97,7.038e-05]
[1741492328222,0.04909987,137.99,137.97,11.91195371]
[1741492328422,0.04909987,137.99,137.98,7.2487]
[1741492330930,11.91188333,138.04,138.01,7.247]
[1741492331120,101.5977332,138.05,138.01,7.247]
[1741492331321,101.5977332,138.05,137.99,11.91188333]
[1741492331720,53.9677059,138.05,137.99,11.91188333]
[1741492331926,7.2458,138.04,137.99,11.91188333]
[1741492332127,0.05121852,138.03,138.01,0.05474493]
[1741492334931,7.29731852,138.03,138.01,0.05474493]
[1741492335729,7.2466,138.02,138.01,0.05474493]
[1741492337337,33.0066,138.02,138.01,0.05474493]
[1741492338337,25.76,138.02,138.01,0.05474493]
[1741492339140,33.0066,138.02,138.01,0.05474493]
[1741492350046,33.0066,138.02,138.01,4.493e-05]
[1741492352350,7.2498,137.96,137.92,11.91188333]
[1741492353549,0.05422696,137.95,137.93,0.05365264]
[1741492354354,0.05422696,137.95,137.94,19.16268333]
[1741492355450,33.0089,137.98,137.94,19.16268333]
[1741492356652,0.05345111,137.97,137.94,19.16268333]
[1741492359150,7.30285111,137.97,137.94,11.91188333]
[1741492361645,7.30285111,137.97,137.94,19.16268333]
[1741492362042,0.05345111,137.97,137.94,19.16268333]
[1741492362251,0.05345111,137.97,137.95,7.2502]
[1741492364454,0.05345111,137.97,137.94,19.16248333]
[1741492364654,7.30275111,137.97,137.94,19.16248333]
[1741492367149,0.05345111,137.97,137.93,0.05365264]
[1741492367457,7.25,137.96,137.93,7.30495264]
[1741492369658,0.05345111,137.97,137.93,0.05365264]
[1741492369857,0.05345111,137.97,137.94,7.2507]
[1741492372357,0.05345111,137.97,137.95,7.2501]
[1741492374257,0.05345111,137.97,137.96,7.2497]
[1741492376458,0.05345111,137.97,137.95,7.25]
[1741492378263,7.2508,137.94,137.93,0.05365264]
[1741492378565,11.91188333,137.94,137.89,4.1464]
[1741492378761,25.76,137.93,137.9,7.2528]
[1741492378960,25.76,137.93,137.89,4.1464]
[1741492379561,0.05232633,137.92,137.9,0.05495663]
[1741492380168,0.05232633,137.92,137.91,19.16428333]
[1741492380673,0.05232633,137.92,137.91,11.91188333]
[1741492381669,0.05232633,137.92,137.91,19.16428333]
[1741492382170,19.16178333,137.96,137.92,7.2513]
[1741492383072,7.2503,137.95,137.92,7.2513]
[1741492383269,7.30175596,137.95,137.92,7.2513]
[1741492385076,0.05145596,137.95,137.93,7.2512]
[1741492386265,0.05145596,137.95,137.91,11.91188333]
[1741492387870,7.30205596,137.95,137.91,19.16398333]
[1741492388067,7.30205596,137.95,137.91,11.91188333]
[1741492389472,7.30205596,137.95,137.92,7.2518]
[1741492389674,7.30205596,137.95,137.91,11.91188333]
[1741492389878,0.05145596,137.95,137.91,11.91188333]
[1741492391273,7.2511,137.94,137.91,11.91188333]
[1741492391468,0.05145596,137.95,137.91,11.91188333]
[1741492392174,0.05145596,137.95,137.93,7.2509]
[1741492393777,0.05145596,137.95,137.94,7.2508]
[1741492394178,19.16058333,137.98,137.93,11.96688428]
[1741492394381,19.16058333,137.98,137.95,7.2501]
[1741492394579,11.91188333,137.98,137.93,11.91188333]
[1741492394879,7.2492,137.97,137.93,11.91188333]
[1741492395075,11.91188333,137.98,137.93,11.91188333]
[1741492395378,0.0492612,137.96,137.94,0.04943413]
[1741492395579,0.0492612,137.96,137.94,7.29993413]
[1741492399485,37.67188333,138.02,137.95,11.91188333]
[1741492400078,44.91848333,138.02,137.98,7.2483]
[1741492400283,37.67188333,138.02,137.95,11.91188333]
[1741492400590,11.91188333,138.02,137.95,11.91188333]
[1741492400883,0.04654921,138.0,137.97,7.29675676]
[1741492401579,0.04654921,138.0,137.98,7.2486]
[1741492401783,0.04654921,138.0,137.97,11.95964009]
[1741492402485,0.04654921,138.0,137.99,7.2482]
[1741492404385,0.04654921,138.0,137.97,11.95964009]
[1741492404985,0.04654921,138.0,137.97,19.20854009]
[1741492405882,0.04654921,138.0,137.98,7.2485]
[1741492406777,0.04654921,138.0,137.99,7.2482]
[1741492406986,0.04654921,138.0,137.97,11.95964009]
[1741492407388,0.04654921,138.0,137.99,7.2482]
[1741492408179,16.27582257,138.09,137.99,41.29188333]
[1741492408383,16.27582257,138.09,138.04,11.91188333]
[1741492408882,37.67188333,138.1,138.04,11.91188333]
[1741492409079,7.2438,138.08,138.04,19.15708333]
[1741492409279,25.76,138.09,138.06,0.05448757]
[1741492410591,11.91188333,138.08,138.06,0.05448757]
[1741492410791,7.244,138.07,138.06,0.05448757]
[1741492420399,25.74,138.08,138.06,0.05448757]
[1741492421697,32.9834,138.08,138.06,0.05448757]
[1741492422291,25.74,138.08,138.06,0.05448757]
[1741492422491,7.244,138.07,138.06,0.05448757]
[1741492423497,25.74,138.08,138.06,0.05448757]
[1741492423695,32.9836,138.08,138.06,0.05448757]
[1741492424802,7.2436,138.08,138.06,0.05448757]
[1741492426502,25.74,138.09,138.06,7.29858757]
[1741492427800,19.15448333,138.1,138.06,7.29858757]
[1741492428103,44.89448333,138.1,138.06,7.29858757]
[1741492428600,11.91188333,138.12,138.07,11.91188333]
[1741492428800,32.9812,138.13,138.09,19.15468333]
[1741492428999,25.74,138.13,138.09,19.15468333]
[1741492429304,37.65188333,138.13,138.09,11.91188333]
[1741492429605,7.2414,138.12,138.09,11.91188333]
[1741492429807,37.65188333,138.13,138.08,7.29208308]
[1741492430304,7.2415,138.12,138.08,7.29208308]
[1741492430805,7.2419,138.11,138.08,7.29208308]
[1741492431304,7.2419,138.11,138.08,0.04878308]
[1741492433211,7.2416,138.12,138.08,7.29208308]
[1741492433413,37.65188333,138.13,138.08,7.29208308]
[1741492433707,7.2419,138.11,138.08,0.04878308]
[1741492434409,37.65188333,138.13,138.08,7.29188308]
[1741492434909,32.9811,138.13,138.09,19.15458333]
[1741492435914,7.2417,138.12,138.09,11.91188333]
[1741492436110,25.74,138.13,138.09,11.91188333]
[1741492436805,7.2417,138.12,138.09,11.91188333]
[1741492437504,25.74,138.15,138.09,11.91188333]
[1741492437712,25.74,138.15,138.1,7.2421]
[1741492438212,25.74,138.15,138.11,0.04757454]
[1741492438915,7.2407,138.14,138.11,0.04757454]
[1741492439113,25.74,138.15,138.11,0.04757454]
[1741492439307,37.65188333,138.15,138.11,0.04757454]
[1741492439613,7.2411,138.13,138.11,0.04757454]
[1741492440313,7.2413,138.12,138.11,0.04757454]
[1741492445520,32.9813,138.12,138.11,0.04757454]
[1741492448320,32.9813,138.12,138.11,7.454e-05]
[1741492454528,7.2413,138.12,138.11,7.454e-05]
[1741492454822,32.9813,138.12,138.11,7.454e-05]
[1741492455626,7.2413,138.12,138.11,7.454e-05]
[1741492471030,0.05454305,138.13,138.11,7.454e-05]
[1741492472132,0.05454305,138.13,138.11,11.91195787]
[1741492472532,0.05454305,138.13,138.11,7.454e-05]
[1741492472926,7.29564305,138.13,138.11,7.454e-05]
[1741492473529,7.2413,138.12,138.11,7.454e-05]
[1741492487244,37.68642638,138.13,138.11,7.454e-05]
[1741492487450,7.29564305,138.13,138.11,7.454e-05]
[1741492487944,0.05454305,138.13,138.11,7.454e-05]
[1741492488652,7.29544305,138.13,138.11,7.454e-05]
[1741492489547,0.05454305,138.13,138.11,7.454e-05]
[1741492490151,7.29544305,138.13,138.11,7.454e-05]
[1741492490349,0.05454305,138.13,138.11,7.454e-05]
[1741492490855,7.2413,138.12,138.11,7.454e-05]
[1741492501451,11.96642638,138.13,138.01,239.08]
[1741492501661,11.91188333,138.08,138.02,3.8786]
[1741492501958,37.63188333,138.08,138.02,3.8786]
[1741492502357,7.2445,138.06,138.02,3.8786]
[1741492502557,11.91188333,138.06,138.02,3.8786]
[1741492502758,0.05353851,138.05,138.03,0.05375676]
[1741492503152,0.05353851,138.05,138.03,7.29945676]
[1741492503952,11.91188333,138.09,138.03,11.96564009]
[1741492504153,11.91188333,138.09,138.03,11.91188333]
[1741492505261,19.15488333,138.09,138.05,0.05588614]
[1741492505757,11.91188333,138.09,138.05,0.05588614]
[1741492507862,7.2435,138.08,138.05,0.05588614]
[1741492509263,19.15498333,138.09,138.05,7.30058614]
[1741492509956,11.91188333,138.09,138.05,0.05588614]
[1741492510161,11.91188333,138.09,138.06,7.2441]
[1741492510364,11.91188333,138.09,138.05,0.05588614]
[1741492510863,19.15478333,138.09,138.05,7.30048614]
[1741492511059,19.15478333,138.09,138.05,0.05588614]
[1741492511258,7.2434,138.08,138.05,7.30078614]
[1741492511860,19.15498333,138.09,138.05,7.30078614]
[1741492512064,19.15498333,138.09,138.06,7.2443]
[1741492512258,11.91188333,138.09,138.05,0.05588614]
[1741492512460,19.15498333,138.09,138.05,0.05588614]
[1741492512660,19.15498333,138.09,138.06,7.2444]
[1741492512967,11.91188333,138.09,138.06,7.2444]
[1741492513262,32.9627,138.1,138.06,7.2444]
[1741492513660,11.91188333,138.13,138.07,11.91188333]
[1741492513860,37.63188333,138.13,138.07,11.91188333]
[1741492514059,37.63188333,138.13,138.09,0.05002676]
[1741492514261,44.87288333,138.13,138.09,0.05002676]
[1741492514864,44.87288333,138.13,138.09,7.29252676]
[1741492515167,37.63188333,138.13,138.09,7.29252676]
[1741492515367,7.2413,138.12,138.09,7.29252676]
[1741492515567,7.2413,138.12,138.09,0.05002676]
[1741492515861,11.91188333,138.11,138.09,0.05002676]
[1741492516069,25.72,138.1,138.09,0.05002676]
[1741492516567,32.9624,138.1,138.09,0.05002676]
[1741492520067,11.91188333,138.12,138.09,0.05002676]
[1741492520268,25.72,138.12,138.07,11.91188333]
[1741492520467,25.72,138.12,138.09,7.28980588]
[1741492521368,25.72,138.12,138.09,0.04710588]
[1741492522370,32.9617,138.12,138.09,0.04710588]
[1741492523877,32.9617,138.12,138.09,7.29000588]
[1741492524781,32.9617,138.12,138.09,0.04710588]
[1741492525980,32.9617,138.12,138.09,7.29000588]
[1741492526282,7.2417,138.12,138.09,19.20188921]
[1741492527373,7.241,138.13,138.09,19.20188921]
[1741492527877,37.63188333,138.14,138.09,19.20188921]
[1741492528081,7.2414,138.12,138.09,19.20188921]
[1741492529185,37.63188333,138.14,138.09,11.95898921]
[1741492529788,7.2417,138.12,138.09,11.95898921]
[1741492529990,37.63188333,138.14,138.09,11.95898921]
[1741492530387,11.91188333,138.12,138.09,0.04710588]
[1741492530585,25.72,138.11,138.09,0.04710588]
[1741492530785,7.2445,138.06,138.04,1.9089]
[1741492531982,7.29419045,138.06,138.04,1.96074059]
[1741492533790,0.04969045,138.06,138.04,13.87262392]
[1741492534290,0.04969045,138.06,138.05,7.245]
[1741492534488,0.04969045,138.06,138.04,13.87262392]
[1741492535891,0.04969045,138.06,138.04,21.11782392]
[1741492536084,0.04969045,138.06,138.04,13.87262392]
[1741492536287,0.04969045,138.06,138.05,7.245]
[1741492539689,11.91188333,138.1,138.07,7.2437]
[1741492539890,37.63188333,138.12,138.06,11.91188333]
[1741492540395,44.87328333,138.12,138.09,7.2426]
[1741492540692,44.87328333,138.12,138.09,7.29438707]
[1741492541491,7.2419,138.11,138.09,0.05178707]
[1741492544201,44.87348333,138.12,138.09,0.05178707]
[1741492546105,44.87348333,138.12,138.09,7.29468707]
[1741492546803,7.2424,138.1,138.09,0.05178707]
[1741492547004,19.15428333,138.1,138.09,0.05178707]
[1741492551304,11.91188333,138.1,138.03,13.84378333]
[1741492551504,11.91188333,138.08,138.02,11.91188333]
[1741492551704,11.91188333,138.08,138.02,19.15808333]
[1741492551908,7.2446,138.06,138.02,19.15808333]
[1741492552508,0.05091641,138.05,138.03,0.05311336]
[1741492553310,0.05091641,138.05,138.03,7.29911336]
[1741492553605,0.05091641,138.05,138.03,0.05311336]
[1741492554310,0.05091641,138.05,138.04,7.2455]
[1741492555211,0.05091641,138.05,138.03,7.29901336]
[1741492555712,0.05091641,138.05,138.04,7.2455]
[1741492559415,0.05091641,138.05,138.04,19.15738333]
[1741492565724,7.243,138.09,138.04,11.91188333]
[1741492565928,7.243,138.09,138.05,7.2445]
[1741492567421,7.243,138.09,138.06,7.2444]
[1741492567831,7.243,138.09,138.06,7.29824194]
[1741492570228,7.243,138.09,138.06,0.05384194]
[1741492570428,7.2435,138.08,138.06,0.05384194]
[1741492570630,37.63188333,138.1,138.06,0.05384194]
[1741492571031,7.244,138.07,138.06,0.05384194]
[1741492571933,37.63188333,138.1,138.06,0.05384194]
[1741492572129,7.2437,138.08,138.06,0.05384194]
[1741492573938,7.244,138.07,138.06,0.05384194]
[1741492574741,7.2435,138.08,138.06,0.05384194]
[1741492575639,75.99525427,138.17,138.06,11.96572527]
[1741492575847,25.72,138.16,138.08,11.91188333]
[1741492576038,11.91188333,138.15,138.1,0.05297537]
[1741492576340,7.2407,138.14,138.1,7.29517537]
[1741492577942,7.2407,138.14,138.1,0.05297537]
[1741492578535,11.91188333,138.17,138.1,11.9648587]
[1741492578743,25.72,138.16,138.1,11.9648587]
[1741492579138,11.91188333,138.15,138.1,11.9648587]
[1741492579340,11.91188333,138.15,138.1,0.05297537]
[1741492580544,7.2405,138.14,138.1,0.05297537]
[1741492580740,11.91188333,138.15,138.1,11.9648587]
[1741492581241,37.63188333,138.17,138.1,19.2071587]
[1741492582144,7.2403,138.15,138.1,19.2071587]
[1741492582334,37.63188333,138.17,138.1,19.2071587]
[1741492582541,37.63188333,138.17,138.1,11.9648587]
[1741492583942,7.2398,138.15,138.1,19.2069587]
[1741492584141,37.63188333,138.17,138.1,19.2069587]
[1741492584541,7.2407,138.14,138.1,19.2069587]
[1741492585244,25.72,138.16,138.1,19.2069587]
[1741492585442,7.2399,138.15,138.1,19.2069587]
[1741492586044,7.2399,138.15,138.11,7.2418]
[1741492586544,32.9594,138.16,138.11,7.2418]
[1741492588145,7.2398,138.15,138.11,7.2418]
[1741492588443,25.72,138.16,138.12,7.2413]
[1741492589147,32.9594,138.16,138.12,7.2413]
[1741492590045,25.72,138.16,138.13,7.2405]
[1741492590446,25.72,138.16,138.13,7.29222012]
[1741492590642,19.15068333,138.17,138.14,7.24]
[1741492591043,19.15068333,138.17,138.13,0.05172012]
[1741492591839,19.15068333,138.17,138.13,7.29232012]
[1741492592239,19.15068333,138.17,138.13,0.05172012]
[1741492592845,11.91188333,138.17,138.13,0.05172012]
[1741492593046,7.2394,138.16,138.13,0.05172012]
[1741492594751,37.61188333,138.17,138.13,0.05172012]
[1741492594950,44.85068333,138.17,138.13,0.05172012]
[1741492595749,7.2395,138.16,138.13,0.05172012]
[1741492596550,44.85078333,138.17,138.13,0.05172012]
[1741492596754,44.85078333,138.17,138.13,7.29242012]
[1741492598050,37.61188333,138.17,138.14,7.2401]
[1741492598748,37.61188333,138.17,138.15,7.2393]
[1741492599454,11.91188333,138.19,138.14,11.91188333]
[1741492599654,25.7,138.2,138.14,11.91188333]